{"text_format":"3","workbook":"xlsx","n_sheets":1,"sheets":["Maiņu grafiks"],"not_rendered":{"defined_names":2},"read":"whole","date_system":"1900"}

{"sheet":"Maiņu grafiks","index":0,"n_rows":59,"n_cols":13,"rows_kept":59,"merged":[[0,1,0,5],[1,2,1,4],[2,2,2,4],[2,10,2,12]]}
[null,"Maiņu grafiks"]
[null,"Nedēļai: "]
[null,"Nodaļas nosaukums: "]
[]
[null,"PIRMDIENA","7:00","8:00","9:00","10:00","11:00","12:00","13:00","14:00","15:00","Slimo?","KOPĀ"]
[null,"Kelly F","vadītājs","vadītājs","vadītājs","vadītājs","vadītājs","vadītājs","vadītājs","vadītājs","vadītājs",null,{"$f":"COUNTIF(Tabula1[[#This Row],[7:00]:[15:00]],\"*\")","v":9}]
[null,"Tom Y",null,"kasieris","kasieris","kasieris","kasieris",{"$nulls":5},{"$f":"COUNTIF(Tabula1[[#This Row],[7:00]:[15:00]],\"*\")","v":4}]
[null,"James S",null,"reģistratūra","reģistratūra","reģistratūra","reģistratūra ","reģistratūra","reģistratūra","reģistratūra",null,null,{"$f":"COUNTIF(Tabula1[[#This Row],[7:00]:[15:00]],\"*\")","v":7}]
[null,"Jon M",null,"reģistratūra","reģistratūra","reģistratūra","reģistratūra ","reģistratūra","reģistratūra","reģistratūra",null,null,{"$f":"COUNTIF(Tabula1[[#This Row],[7:00]:[15:00]],\"*\")","v":7}]
[null,"Sean P",{"$nulls":9},"Slimoja",{"$f":"COUNTIF(Tabula1[[#This Row],[7:00]:[15:00]],\"*\")","v":0}]
[null,"Teresa A",{"$nulls":5},"kasieris","kasieris","kasieris","kasieris",null,{"$f":"COUNTIF(Tabula1[[#This Row],[7:00]:[15:00]],\"*\")","v":4}]
[]
[null,"OTRDIENA","7:00","8:00","9:00","10:00","11:00","12:00","13:00","14:00","15:00","Slimo?","KOPĀ"]
[null,"Kelly F","vadītājs","vadītājs","vadītājs","vadītājs","vadītājs","vadītājs","vadītājs","vadītājs","vadītājs",null,{"$f":"COUNTIF(Tabula2[[#This Row],[7:00]:[15:00]],\"*\")","v":9}]
[null,"Tom Y",null,"kasieris","kasieris","kasieris","kasieris",{"$nulls":5},{"$f":"COUNTIF(Tabula2[[#This Row],[7:00]:[15:00]],\"*\")","v":4}]
[null,"James S",null,"reģistratūra","reģistratūra","reģistratūra","reģistratūra ","reģistratūra","reģistratūra","reģistratūra",null,null,{"$f":"COUNTIF(Tabula2[[#This Row],[7:00]:[15:00]],\"*\")","v":7}]
[null,"Jon M",null,"reģistratūra","reģistratūra","reģistratūra","reģistratūra ","reģistratūra","reģistratūra","reģistratūra",null,null,{"$f":"COUNTIF(Tabula2[[#This Row],[7:00]:[15:00]],\"*\")","v":7}]
[null,"Sean P",{"$nulls":9},"Slimoja",{"$f":"COUNTIF(Tabula2[[#This Row],[7:00]:[15:00]],\"*\")","v":0}]
[null,"Teresa A",{"$nulls":5},"kasieris","kasieris","kasieris","kasieris",null,{"$f":"COUNTIF(Tabula2[[#This Row],[7:00]:[15:00]],\"*\")","v":4}]
[]
[null,"TREŠDIENA","7:00","8:00","9:00","10:00","11:00","12:00","13:00","14:00","15:00","Slimo?","KOPĀ"]
[null,"Kelly F","vadītājs","vadītājs","vadītājs","vadītājs","vadītājs","vadītājs","vadītājs","vadītājs","vadītājs",null,{"$f":"COUNTIF(Tabula3[[#This Row],[7:00]:[15:00]],\"*\")","v":9}]
[null,"Tom Y",null,"kasieris","kasieris","kasieris","kasieris",{"$nulls":5},{"$f":"COUNTIF(Tabula3[[#This Row],[7:00]:[15:00]],\"*\")","v":4}]
[null,"James S",null,"reģistratūra","reģistratūra","reģistratūra","reģistratūra ","reģistratūra","reģistratūra","reģistratūra",null,null,{"$f":"COUNTIF(Tabula3[[#This Row],[7:00]:[15:00]],\"*\")","v":7}]
[null,"Jon M",null,"reģistratūra","reģistratūra","reģistratūra","reģistratūra ","reģistratūra","reģistratūra","reģistratūra",null,null,{"$f":"COUNTIF(Tabula3[[#This Row],[7:00]:[15:00]],\"*\")","v":7}]
[null,"Sean P",{"$nulls":9},"Slimoja",{"$f":"COUNTIF(Tabula3[[#This Row],[7:00]:[15:00]],\"*\")","v":0}]
[null,"Teresa A",{"$nulls":5},"kasieris","kasieris","kasieris","kasieris",null,{"$f":"COUNTIF(Tabula3[[#This Row],[7:00]:[15:00]],\"*\")","v":4}]
[]
[null,"CETURTDIENA","7:00","8:00","9:00","10:00","11:00","12:00","13:00","14:00","15:00","Slimo?","KOPĀ"]
[null,"Kelly F","vadītājs","vadītājs","vadītājs","vadītājs","vadītājs","vadītājs","vadītājs","vadītājs","vadītājs",null,{"$f":"COUNTIF(Tabula4[[#This Row],[7:00]:[15:00]],\"*\")","v":9}]
[null,"Tom Y",null,"kasieris","kasieris","kasieris","kasieris",{"$nulls":5},{"$f":"COUNTIF(Tabula4[[#This Row],[7:00]:[15:00]],\"*\")","v":4}]
[null,"James S",null,"reģistratūra","reģistratūra","reģistratūra","reģistratūra ","reģistratūra","reģistratūra","reģistratūra",null,null,{"$f":"COUNTIF(Tabula4[[#This Row],[7:00]:[15:00]],\"*\")","v":7}]
[null,"Jon M",null,"reģistratūra","reģistratūra","reģistratūra","reģistratūra ","reģistratūra","reģistratūra","reģistratūra",null,null,{"$f":"COUNTIF(Tabula4[[#This Row],[7:00]:[15:00]],\"*\")","v":7}]
[null,"Sean P",{"$nulls":9},"Slimoja",{"$f":"COUNTIF(Tabula4[[#This Row],[7:00]:[15:00]],\"*\")","v":0}]
[null,"Teresa A",{"$nulls":5},"kasieris","kasieris","kasieris","kasieris",null,{"$f":"COUNTIF(Tabula4[[#This Row],[7:00]:[15:00]],\"*\")","v":4}]
[]
[null,"PIEKTDIENA","7:00","8:00","9:00","10:00","11:00","12:00","13:00","14:00","15:00","Slimo?","KOPĀ"]
[null,"Kelly F","vadītājs","vadītājs","vadītājs","vadītājs","vadītājs","vadītājs","vadītājs","vadītājs","vadītājs",null,{"$f":"COUNTIF(Tabula5[[#This Row],[7:00]:[15:00]],\"*\")","v":9}]
[null,"Tom Y",null,"kasieris","kasieris","kasieris","kasieris",{"$nulls":5},{"$f":"COUNTIF(Tabula5[[#This Row],[7:00]:[15:00]],\"*\")","v":4}]
[null,"James S",null,"reģistratūra","reģistratūra","reģistratūra","reģistratūra ","reģistratūra","reģistratūra","reģistratūra",null,null,{"$f":"COUNTIF(Tabula5[[#This Row],[7:00]:[15:00]],\"*\")","v":7}]
[null,"Jon M",null,"reģistratūra","reģistratūra","reģistratūra","reģistratūra ","reģistratūra","reģistratūra","reģistratūra",null,null,{"$f":"COUNTIF(Tabula5[[#This Row],[7:00]:[15:00]],\"*\")","v":7}]
[null,"Sean P",{"$nulls":9},"Slimoja",{"$f":"COUNTIF(Tabula5[[#This Row],[7:00]:[15:00]],\"*\")","v":0}]
[null,"Teresa A",{"$nulls":5},"kasieris","kasieris","kasieris","kasieris",null,{"$f":"COUNTIF(Tabula5[[#This Row],[7:00]:[15:00]],\"*\")","v":4}]
[]
[null,"SESTDIENA","7:00","8:00","9:00","10:00","11:00","12:00","13:00","14:00","15:00","Slimo?","KOPĀ"]
[null,"Kelly F","vadītājs","vadītājs","vadītājs","vadītājs","vadītājs","vadītājs","vadītājs","vadītājs","vadītājs",null,{"$f":"COUNTIF(Tabula6[[#This Row],[7:00]:[15:00]],\"*\")","v":9}]
[null,"Tom Y",null,"kasieris","kasieris","kasieris","kasieris",{"$nulls":5},{"$f":"COUNTIF(Tabula6[[#This Row],[7:00]:[15:00]],\"*\")","v":4}]
[null,"James S",null,"reģistratūra","reģistratūra","reģistratūra","reģistratūra ","reģistratūra","reģistratūra","reģistratūra",null,null,{"$f":"COUNTIF(Tabula6[[#This Row],[7:00]:[15:00]],\"*\")","v":7}]
[null,"Jon M",null,"reģistratūra","reģistratūra","reģistratūra","reģistratūra ","reģistratūra","reģistratūra","reģistratūra",null,null,{"$f":"COUNTIF(Tabula6[[#This Row],[7:00]:[15:00]],\"*\")","v":7}]
[null,"Sean P",{"$nulls":9},"Slimoja",{"$f":"COUNTIF(Tabula6[[#This Row],[7:00]:[15:00]],\"*\")","v":0}]
[null,"Teresa A",{"$nulls":5},"kasieris","kasieris","kasieris","kasieris",null,{"$f":"COUNTIF(Tabula6[[#This Row],[7:00]:[15:00]],\"*\")","v":4}]
[]
[null,"SVĒTDIENA","7:00","8:00","9:00","10:00","11:00","12:00","13:00","14:00","15:00","Slimo?","KOPĀ"]
[null,"Kelly F","vadītājs","vadītājs","vadītājs","vadītājs","vadītājs","vadītājs","vadītājs","vadītājs","vadītājs",null,{"$f":"COUNTIF(Tabula7[[#This Row],[7:00]:[15:00]],\"*\")","v":9}]
[null,"Tom Y",null,"kasieris","kasieris","kasieris","kasieris",{"$nulls":5},{"$f":"COUNTIF(Tabula7[[#This Row],[7:00]:[15:00]],\"*\")","v":4}]
[null,"James S",null,"reģistratūra","reģistratūra","reģistratūra","reģistratūra ","reģistratūra","reģistratūra","reģistratūra",null,null,{"$f":"COUNTIF(Tabula7[[#This Row],[7:00]:[15:00]],\"*\")","v":7}]
[null,"Jon M",null,"reģistratūra","reģistratūra","reģistratūra","reģistratūra ","reģistratūra","reģistratūra","reģistratūra",null,null,{"$f":"COUNTIF(Tabula7[[#This Row],[7:00]:[15:00]],\"*\")","v":7}]
[null,"Sean P",{"$nulls":9},"Slimoja",{"$f":"COUNTIF(Tabula7[[#This Row],[7:00]:[15:00]],\"*\")","v":0}]
[null,"Teresa A",{"$nulls":5},"kasieris","kasieris","kasieris","kasieris",null,{"$f":"COUNTIF(Tabula7[[#This Row],[7:00]:[15:00]],\"*\")","v":4}]